[Event "*** Titled Tuesday Blitz"]
[Site "Chess.com"]
[Date "2021.02.09"]
[Round "7"]
[White "profofchess"]
[Black "rachidhuilda"]
[Result "0-1"]
[WhiteElo "2412"]
[BlackElo "2308"]
[TimeControl "180+1"]
[EndTime "11:19:36 PST"]
[Termination "rachidhuilda won on time"]

1. e4 {[%clk 0:03:00.9]} 1... c5 {[%clk 0:02:58.3]} 2. Nf3 {[%clk 0:03:00.7]}
2... e6 {[%clk 0:02:58.7]} 3. c3 {[%clk 0:03:00.6]} 3... d5 {[%clk 0:02:58.3]}
4. e5 {[%clk 0:03:00.2]} 4... d4 {[%clk 0:02:55.2]} 5. Bd3 {[%clk 0:03:00.3]}
5... Nc6 {[%clk 0:02:54.8]} 6. O-O {[%clk 0:02:59.8]} 6... g6 {[%clk 0:02:54.1]}
7. Na3 {[%clk 0:02:57.5]} 7... a6 {[%clk 0:02:45.2]} 8. Be4 {[%clk 0:02:38.1]}
8... Nge7 {[%clk 0:02:34.1]} 9. Nc4 {[%clk 0:02:35.6]} 9... Nd5 {[%clk
0:02:34.2]} 10. a4 {[%clk 0:02:34.9]} 10... Bd7 {[%clk 0:02:15.6]} 11. Re1
{[%clk 0:02:24.1]} 11... Be7 {[%clk 0:01:52.2]} 12. Nd6+ {[%clk 0:02:03.1]}
12... Bxd6 {[%clk 0:01:51.1]} 13. exd6 {[%clk 0:02:04]} 13... O-O {[%clk
0:01:43.8]} 14. d3 {[%clk 0:01:36.9]} 14... dxc3 {[%clk 0:01:43.8]} 15. Bxd5
{[%clk 0:01:33.9]} 15... exd5 {[%clk 0:01:42.9]} 16. bxc3 {[%clk 0:01:19.9]}
16... Bg4 {[%clk 0:01:36.4]} 17. Bf4 {[%clk 0:01:11]} 17... Qf6 {[%clk
0:01:33.8]} 18. Bg3 {[%clk 0:01:09.8]} 18... Bxf3 {[%clk 0:01:23.8]} 19. Qxf3
{[%clk 0:01:09.4]} 19... Qxf3 {[%clk 0:01:22.8]} 20. gxf3 {[%clk 0:01:10.3]}
20... f5 {[%clk 0:01:15.6]} 21. Bf4 {[%clk 0:01:08.8]} 21... Rfe8 {[%clk
0:00:43.4]} 22. Reb1 {[%clk 0:01:03.8]} 22... Ne5 {[%clk 0:00:22.3]} 23. Bxe5
{[%clk 0:01:01.7]} 23... Rxe5 {[%clk 0:00:21.9]} 24. Rxb7 {[%clk 0:01:02.3]}
24... Rd8 {[%clk 0:00:20.9]} 25. Rb6 {[%clk 0:01:01.3]} 25... Re6 {[%clk
0:00:19.9]} 26. Rxa6 {[%clk 0:01:01.2]} 26... Rdxd6 {[%clk 0:00:16.4]} 27. Rxd6
{[%clk 0:01:01.3]} 27... Rxd6 {[%clk 0:00:16.8]} 28. a5 {[%clk 0:01:02.2]} 28...
Ra6 {[%clk 0:00:17.4]} 29. Kg2 {[%clk 0:00:32.3]} 29... Kf7 {[%clk 0:00:17.4]}
30. Kg3 {[%clk 0:00:32.6]} 30... Kf6 {[%clk 0:00:16.6]} 31. d4 {[%clk
0:00:26.8]} 31... c4 {[%clk 0:00:15.6]} 32. h4 {[%clk 0:00:21.4]} 32... h6
{[%clk 0:00:15.1]} 33. Ra2 {[%clk 0:00:19.1]} 33... g5 {[%clk 0:00:15.3]} 34.
hxg5+ {[%clk 0:00:15.1]} 34... Kxg5 {[%clk 0:00:15.6]} 35. f4+ {[%clk
0:00:11.6]} 35... Kg6 {[%clk 0:00:12.4]} 36. Kh4 {[%clk 0:00:08.7]} 36... h5
{[%clk 0:00:11.3]} 37. Ra1 {[%clk 0:00:07.7]} 37... Kh6 {[%clk 0:00:10.3]} 38.
f3 {[%clk 0:00:07.7]} 38... Kg6 {[%clk 0:00:09.5]} 39. Rg1+ {[%clk 0:00:08.2]}
39... Kh6 {[%clk 0:00:10.1]} 40. Rg5 {[%clk 0:00:08.8]} 40... Rxa5 {[%clk
0:00:09.9]} 41. Rxf5 {[%clk 0:00:08.3]} 41... Ra3 {[%clk 0:00:09.5]} 42. Rxh5+
{[%clk 0:00:07.5]} 42... Kg6 {[%clk 0:00:08.1]} 43. Rxd5 {[%clk 0:00:08]} 43...
Rxc3 {[%clk 0:00:08.4]} 44. Kg4 {[%clk 0:00:07]} 44... Rc1 {[%clk 0:00:07]} 45.
Rd6+ {[%clk 0:00:05.1]} 45... Kf7 {[%clk 0:00:07]} 46. Rc6 {[%clk 0:00:05.5]}
46... c3 {[%clk 0:00:06.6]} 47. Kf5 {[%clk 0:00:04.5]} 47... c2 {[%clk 0:00:05]}
48. Rc7+ {[%clk 0:00:04.3]} 48... Ke8 {[%clk 0:00:05]} 49. Kf6 {[%clk
0:00:02.7]} 49... Kd8 {[%clk 0:00:05.3]} 50. Rc5 {[%clk 0:00:02.3]} 50... Ke8
{[%clk 0:00:05.4]} 51. f5 {[%clk 0:00:02.5]} 51... Kd7 {[%clk 0:00:03]} 52. d5
{[%clk 0:00:02.2]} 52... Kd6 {[%clk 0:00:02.8]} 53. Rc3 {[%clk 0:00:01.8]} 53...
Kxd5 {[%clk 0:00:02.6]} 54. Kf7 {[%clk 0:00:01.2]} 54... Ke5 {[%clk 0:00:02.2]}
55. f6 {[%clk 0:00:01.6]} 55... Kf4 {[%clk 0:00:02.1]} 56. Rc4+ {[%clk 0:00:02]}
56... Ke5 {[%clk 0:00:02.3]} 57. Kf8 {[%clk 0:00:01.2]} 57... Kd5 {[%clk
0:00:02.9]} 58. Rc3 {[%clk 0:00:01.3]} 58... Ke6 {[%clk 0:00:03.5]} 59. Rc6+
{[%clk 0:00:01.3]} 59... Kd5 {[%clk 0:00:03.6]} 60. Rc8 {[%clk 0:00:01.6]} 60...
Ke6 {[%clk 0:00:03.9]} 61. Rc6+ {[%clk 0:00:01.1]} 61... Kd5 {[%clk 0:00:04.1]}
0-1

[Event "*** Titled Tuesday Blitz"]
[Site "Chess.com"]
[Date "2021.02.09"]
[Round "7"]
[White "Angry_Twin"]
[Black "Alexchess1984"]
[Result "0-1"]
[WhiteElo "2835"]
[BlackElo "2730"]
[TimeControl "180+1"]
[EndTime "11:19:39 PST"]
[Termination "Alexchess1984 won by checkmate"]

1. e4 {[%clk 0:03:00.9]} 1... c5 {[%clk 0:02:59.5]} 2. Nf3 {[%clk 0:03:00.9]}
2... Nc6 {[%clk 0:02:59.5]} 3. Bb5 {[%clk 0:03:00.5]} 3... g6 {[%clk 0:02:59.3]}
4. Bxc6 {[%clk 0:03:00.4]} 4... dxc6 {[%clk 0:02:59]} 5. d3 {[%clk 0:03:00.4]}
5... Bg7 {[%clk 0:02:59]} 6. h3 {[%clk 0:03:01.1]} 6... b6 {[%clk 0:02:57]} 7.
Nc3 {[%clk 0:02:59.7]} 7... Nh6 {[%clk 0:02:56.5]} 8. O-O {[%clk 0:02:46]} 8...
f6 {[%clk 0:02:48.8]} 9. e5 {[%clk 0:02:46]} 9... O-O {[%clk 0:02:39.5]} 10.
exf6 {[%clk 0:02:39.9]} 10... exf6 {[%clk 0:02:39.1]} 11. a4 {[%clk 0:02:39.4]}
11... a5 {[%clk 0:02:36.4]} 12. Bxh6 {[%clk 0:02:35.1]} 12... Bxh6 {[%clk
0:02:35.9]} 13. Nd2 {[%clk 0:02:35.7]} 13... Be6 {[%clk 0:02:32.2]} 14. Re1
{[%clk 0:02:32.1]} 14... Bd5 {[%clk 0:02:31.9]} 15. Nxd5 {[%clk 0:02:30.9]}
15... cxd5 {[%clk 0:02:31.4]} 16. Nf1 {[%clk 0:02:27]} 16... Qd6 {[%clk
0:02:20]} 17. Qf3 {[%clk 0:02:26.9]} 17... Rfe8 {[%clk 0:02:18.9]} 18. c4 {[%clk
0:02:26.5]} 18... d4 {[%clk 0:02:14.3]} 19. Re2 {[%clk 0:02:19.1]} 19... Rxe2
{[%clk 0:02:06.4]} 20. Qxe2 {[%clk 0:02:08.1]} 20... Qe5 {[%clk 0:02:04.7]} 21.
Qf3 {[%clk 0:02:07]} 21... Re8 {[%clk 0:02:03.5]} 22. Ng3 {[%clk 0:02:06.4]}
22... f5 {[%clk 0:01:55.8]} 23. Qb7 {[%clk 0:02:03.6]} 23... Re6 {[%clk
0:01:47.5]} 24. Qc8+ {[%clk 0:01:53.7]} 24... Kg7 {[%clk 0:01:39.5]} 25. Qd7+
{[%clk 0:01:53.2]} 25... Re7 {[%clk 0:01:35.5]} 26. Qc6 {[%clk 0:01:51.7]} 26...
Re6 {[%clk 0:01:35.7]} 27. Qd7+ {[%clk 0:01:51.4]} 27... Re7 {[%clk 0:01:36]}
28. Qd8 {[%clk 0:01:45.5]} 28... Bf4 {[%clk 0:01:32.3]} 29. Nf1 {[%clk
0:01:43.5]} 29... Re6 {[%clk 0:01:28.9]} 30. g3 {[%clk 0:01:32.8]} 30... Bh6
{[%clk 0:01:28.5]} 31. Ra3 {[%clk 0:01:25.8]} 31... Qd6 {[%clk 0:01:24.6]} 32.
Qc8 {[%clk 0:00:53.9]} 32... Bg5 {[%clk 0:01:17.9]} 33. Nh2 {[%clk 0:00:44.4]}
33... Re1+ {[%clk 0:01:11.7]} 34. Kg2 {[%clk 0:00:44]} 34... Bd8 {[%clk
0:01:10]} 35. Nf3 {[%clk 0:00:43.1]} 35... Re2 {[%clk 0:01:07.9]} 36. Ra1 {[%clk
0:00:40.6]} 36... Bc7 {[%clk 0:01:07.7]} 37. Kf1 {[%clk 0:00:16.4]} 37... Rxf2+
{[%clk 0:01:06.7]} 38. Kxf2 {[%clk 0:00:17.3]} 38... Qxg3+ {[%clk 0:01:07.3]}
39. Ke2 {[%clk 0:00:18.2]} 39... Qg2+ {[%clk 0:01:07.1]} 40. Kd1 {[%clk
0:00:18.6]} 40... Qxf3+ {[%clk 0:01:05.5]} 41. Kc2 {[%clk 0:00:16.9]} 41... Qe2+
{[%clk 0:01:04.6]} 42. Kb3 {[%clk 0:00:17.2]} 42... Qxd3+ {[%clk 0:01:02.2]} 43.
Ka2 {[%clk 0:00:17.6]} 43... Qxc4+ {[%clk 0:01:02.2]} 44. b3 {[%clk 0:00:17.6]}
44... Qe2+ {[%clk 0:00:58.2]} 45. Ka3 {[%clk 0:00:17.7]} 45... Qe7 {[%clk
0:00:48.1]} 46. Re1 {[%clk 0:00:10.9]} 46... Qxe1 {[%clk 0:00:37.7]} 47. Qxc7+
{[%clk 0:00:11.1]} 47... Kh6 {[%clk 0:00:32.2]} 48. Qf4+ {[%clk 0:00:09.7]}
48... Kh5 {[%clk 0:00:31.5]} 49. Qf3+ {[%clk 0:00:10.4]} 49... Kh4 {[%clk
0:00:31.5]} 50. Qf4+ {[%clk 0:00:10.7]} 50... Kxh3 {[%clk 0:00:31.5]} 51. Qf3+
{[%clk 0:00:11.1]} 51... Kh4 {[%clk 0:00:26.1]} 52. Qf4+ {[%clk 0:00:09.7]}
52... Kh5 {[%clk 0:00:26.1]} 53. Ka2 {[%clk 0:00:10]} 53... Qe2+ {[%clk
0:00:23.2]} 54. Ka3 {[%clk 0:00:10]} 54... d3 {[%clk 0:00:23.6]} 55. Qc7 {[%clk
0:00:09.6]} 55... h6 {[%clk 0:00:22.8]} 56. Qg3 {[%clk 0:00:07.5]} 56... g5
{[%clk 0:00:17.4]} 57. Qh3+ {[%clk 0:00:06.9]} 57... Kg6 {[%clk 0:00:17.6]} 58.
Qg3 {[%clk 0:00:07.3]} 58... d2 {[%clk 0:00:17.3]} 59. Qd6+ {[%clk 0:00:07.5]}
59... Kh5 {[%clk 0:00:17.5]} 60. b4 {[%clk 0:00:05.3]} 60... d1=Q {[%clk
0:00:16.2]} 61. Qh2+ {[%clk 0:00:02.4]} 61... Qxh2 {[%clk 0:00:15.6]} 62. bxc5
{[%clk 0:00:03]} 62... Qd3# {[%clk 0:00:14.4]} 0-1

[Event "*** Titled Tuesday Blitz"]
[Site "Chess.com"]
[Date "2021.02.09"]
[Round "7"]
[White "Vasily85"]
[Black "PavelShkapenko"]
[Result "0-1"]
[WhiteElo "2443"]
[BlackElo "2686"]
[TimeControl "180+1"]
[EndTime "11:19:39 PST"]
[Termination "PavelShkapenko won by resignation"]

1. d4 {[%clk 0:03:00.9]} 1... Nf6 {[%clk 0:02:59.2]} 2. Bg5 {[%clk 0:03:00.4]}
2... Ne4 {[%clk 0:02:57.3]} 3. Bf4 {[%clk 0:03:00.5]} 3... d5 {[%clk 0:02:57.5]}
4. e3 {[%clk 0:03:00.8]} 4... c5 {[%clk 0:02:57.8]} 5. Bd3 {[%clk 0:03:00.8]}
5... Nf6 {[%clk 0:02:57.8]} 6. c3 {[%clk 0:02:58.3]} 6... Nc6 {[%clk 0:02:57.8]}
7. Nd2 {[%clk 0:02:57.7]} 7... Bg4 {[%clk 0:02:56.7]} 8. f3 {[%clk 0:02:48.6]}
8... Bh5 {[%clk 0:02:54.8]} 9. Ne2 {[%clk 0:02:40]} 9... Bg6 {[%clk 0:02:53.9]}
10. Qb1 {[%clk 0:02:35.9]} 10... e6 {[%clk 0:02:48.4]} 11. O-O {[%clk
0:02:27.4]} 11... Qb6 {[%clk 0:02:48]} 12. a3 {[%clk 0:02:18.2]} 12... Rc8
{[%clk 0:02:32.2]} 13. b4 {[%clk 0:02:15.2]} 13... cxd4 {[%clk 0:02:32.1]} 14.
cxd4 {[%clk 0:02:13.1]} 14... Be7 {[%clk 0:02:27.9]} 15. Nb3 {[%clk 0:02:08.3]}
15... O-O {[%clk 0:02:23.6]} 16. Nc5 {[%clk 0:02:04.7]} 16... a5 {[%clk
0:02:10]} 17. Bxg6 {[%clk 0:01:54.9]} 17... hxg6 {[%clk 0:02:08.4]} 18. bxa5
{[%clk 0:01:29]} 18... Qa7 {[%clk 0:01:37.9]} 19. Qb6 {[%clk 0:01:19.3]} 19...
Qxb6 {[%clk 0:01:00.2]} 20. axb6 {[%clk 0:01:20.2]} 20... Bxc5 {[%clk
0:01:00.6]} 21. dxc5 {[%clk 0:01:18.8]} 21... Na5 {[%clk 0:00:51.7]} 22. Bd6
{[%clk 0:01:07.6]} 22... Rfe8 {[%clk 0:00:51.3]} 23. Nd4 {[%clk 0:01:00]} 23...
Nd7 {[%clk 0:00:50.7]} 24. Rac1 {[%clk 0:00:39.8]} 24... Nc4 {[%clk 0:00:45.9]}
25. Rxc4 {[%clk 0:00:30]} 25... dxc4 {[%clk 0:00:45.7]} 26. c6 {[%clk
0:00:30.6]} 26... Nxb6 {[%clk 0:00:32.3]} 27. cxb7 {[%clk 0:00:29.3]} 27... Rb8
{[%clk 0:00:20.9]} 28. Bxb8 {[%clk 0:00:28.4]} 28... Rxb8 {[%clk 0:00:21.8]} 29.
Rb1 {[%clk 0:00:22.4]} 29... Rxb7 {[%clk 0:00:22]} 30. a4 {[%clk 0:00:22.9]}
30... e5 {[%clk 0:00:21.9]} 31. Nc6 {[%clk 0:00:18.8]} 31... c3 {[%clk
0:00:22.3]} 32. a5 {[%clk 0:00:12.4]} 32... c2 {[%clk 0:00:22.5]} 33. Rc1 {[%clk
0:00:12.9]} 33... Nd5 {[%clk 0:00:19.5]} 34. Rxc2 {[%clk 0:00:11.3]} 34... Nxe3
{[%clk 0:00:19.7]} 35. Re2 {[%clk 0:00:08.5]} 35... Rb1+ {[%clk 0:00:18.1]} 36.
Kf2 {[%clk 0:00:08.7]} 36... Nd1+ {[%clk 0:00:18.4]} 37. Kg3 {[%clk 0:00:09]}
37... Ra1 {[%clk 0:00:16.9]} 38. Rxe5 {[%clk 0:00:09.4]} 38... f6 {[%clk
0:00:15.4]} 39. Re1 {[%clk 0:00:09.7]} 39... Kf7 {[%clk 0:00:14]} 40. Nb4 {[%clk
0:00:09.7]} 40... Ra4 {[%clk 0:00:12.7]} 41. Rxd1 {[%clk 0:00:08.9]} 41... Rxb4
{[%clk 0:00:13]} 42. Ra1 {[%clk 0:00:09.5]} 42... Rb7 {[%clk 0:00:12.8]} 43. a6
{[%clk 0:00:10.1]} 43... Ra7 {[%clk 0:00:13.7]} 44. Kf4 {[%clk 0:00:10.6]} 44...
Ke6 {[%clk 0:00:14.6]} 45. Ke4 {[%clk 0:00:10.7]} 45... Kd6 {[%clk 0:00:14.9]}
46. f4 {[%clk 0:00:10.3]} 46... Kc6 {[%clk 0:00:14.4]} 47. g4 {[%clk 0:00:10.7]}
47... Kb6 {[%clk 0:00:13.8]} 48. f5 {[%clk 0:00:11.3]} 48... Re7+ {[%clk
0:00:13.8]} 49. Kd4 {[%clk 0:00:10.2]} 49... gxf5 {[%clk 0:00:14.2]} 50. gxf5
{[%clk 0:00:11.1]} 50... Ka7 {[%clk 0:00:14.6]} 51. Kd5 {[%clk 0:00:10.6]} 51...
Re5+ {[%clk 0:00:14.6]} 52. Kd6 {[%clk 0:00:10.8]} 52... Rxf5 {[%clk 0:00:15]}
53. Rg1 {[%clk 0:00:11.4]} 53... g5 {[%clk 0:00:12.4]} 54. Ke6 {[%clk
0:00:11.4]} 54... Rf2 {[%clk 0:00:12.5]} 55. h4 {[%clk 0:00:10.6]} 55... gxh4
{[%clk 0:00:12.1]} 56. Rg4 {[%clk 0:00:11.1]} 56... h3 {[%clk 0:00:12.1]} 57.
Rh4 {[%clk 0:00:11.3]} 57... h2 {[%clk 0:00:12.5]} 58. Kd5 {[%clk 0:00:09.5]}
58... Kxa6 {[%clk 0:00:12.6]} 59. Ke4 {[%clk 0:00:10.2]} 59... Kb5 {[%clk
0:00:12.2]} 60. Ke3 {[%clk 0:00:10.7]} 60... Rb2 {[%clk 0:00:11.5]} 61. Kf3
{[%clk 0:00:10.5]} 61... Kc5 {[%clk 0:00:11.5]} 62. Kg3 {[%clk 0:00:11.1]} 62...
Kd5 {[%clk 0:00:11.8]} 63. Rxh2 {[%clk 0:00:11.7]} 63... Rxh2 {[%clk 0:00:11.1]}
64. Kxh2 {[%clk 0:00:12.6]} 64... Ke4 {[%clk 0:00:11.6]} 65. Kg3 {[%clk
0:00:12.5]} 65... f5 {[%clk 0:00:11.2]} 66. Kg2 {[%clk 0:00:11.9]} 66... Ke3
{[%clk 0:00:11.3]} 0-1

[Event "*** Titled Tuesday Blitz"]
[Site "Chess.com"]
[Date "2021.02.09"]
[Round "7"]
[White "GoltsevDmitry2000"]
[Black "AlexTriapishko"]
[Result "0-1"]
[WhiteElo "2727"]
[BlackElo "2861"]
[TimeControl "180+1"]
[EndTime "11:19:44 PST"]
[Termination "AlexTriapishko won by checkmate"]

1. c4 {[%clk 0:02:59]} 1... c5 {[%clk 0:02:38.8]} 2. g3 {[%clk 0:02:57.3]} 2...
Nc6 {[%clk 0:02:39.7]} 3. Bg2 {[%clk 0:02:54.9]} 3... g6 {[%clk 0:02:39.9]} 4.
Nc3 {[%clk 0:02:54]} 4... Bg7 {[%clk 0:02:39.4]} 5. Nf3 {[%clk 0:02:52.7]} 5...
e6 {[%clk 0:02:39]} 6. O-O {[%clk 0:02:50.7]} 6... Nge7 {[%clk 0:02:38]} 7. e3
{[%clk 0:02:47.8]} 7... O-O {[%clk 0:02:36]} 8. d4 {[%clk 0:02:46.2]} 8... cxd4
{[%clk 0:02:34.9]} 9. Nxd4 {[%clk 0:02:43.9]} 9... d5 {[%clk 0:02:33.9]} 10.
cxd5 {[%clk 0:02:41.1]} 10... exd5 {[%clk 0:02:32.3]} 11. Nce2 {[%clk 0:02:34]}
11... h5 {[%clk 0:02:30.1]} 12. Bd2 {[%clk 0:02:28.4]} 12... h4 {[%clk
0:02:29.6]} 13. Bc3 {[%clk 0:02:22.9]} 13... h3 {[%clk 0:02:29.8]} 14. Bf3
{[%clk 0:02:18.2]} 14... Ne5 {[%clk 0:02:26.8]} 15. Nf4 {[%clk 0:02:14.4]} 15...
Nxf3+ {[%clk 0:02:17.4]} 16. Qxf3 {[%clk 0:02:11]} 16... Nc6 {[%clk 0:02:11.1]}
17. Qxd5 {[%clk 0:02:04.4]} 17... Nxd4 {[%clk 0:01:49.7]} 18. Bxd4 {[%clk
0:01:58.8]} 18... Qxd5 {[%clk 0:01:49.1]} 19. Nxd5 {[%clk 0:01:58.2]} 19... Bxd4
{[%clk 0:01:50]} 20. exd4 {[%clk 0:01:58.3]} 20... Rd8 {[%clk 0:01:50.6]} 21.
Nc7 {[%clk 0:01:49.6]} 21... Rb8 {[%clk 0:01:50.5]} 22. d5 {[%clk 0:01:46]}
22... Bf5 {[%clk 0:01:42.3]} 23. Rac1 {[%clk 0:01:39.7]} 23... Rd7 {[%clk
0:01:35.6]} 24. Rc3 {[%clk 0:01:22.7]} 24... Be4 {[%clk 0:01:20.6]} 25. Rd1
{[%clk 0:01:14.8]} 25... Rbd8 {[%clk 0:01:20.4]} 26. f3 {[%clk 0:01:07.9]} 26...
Bxd5 {[%clk 0:01:20]} 27. Nxd5 {[%clk 0:00:51.5]} 27... Rxd5 {[%clk 0:01:20.9]}
28. Rxd5 {[%clk 0:00:51.7]} 28... Rxd5 {[%clk 0:01:21.8]} 29. Rc2 {[%clk
0:00:49.8]} 29... Rd1+ {[%clk 0:01:04.1]} 30. Kf2 {[%clk 0:00:48.6]} 30... Rh1
{[%clk 0:01:05]} 31. Ke3 {[%clk 0:00:47.8]} 31... Rg1 {[%clk 0:00:55]} 32. Rc7
{[%clk 0:00:36.3]} 32... Rg2 {[%clk 0:00:43.5]} 33. Rxb7 {[%clk 0:00:35.5]}
33... Rxh2 {[%clk 0:00:44.1]} 34. Rb4 {[%clk 0:00:09.1]} 34... Rg2 {[%clk
0:00:40.5]} 35. Rh4 {[%clk 0:00:08.4]} 35... h2 {[%clk 0:00:32.8]} 36. b3 {[%clk
0:00:06.7]} 36... Rxa2 {[%clk 0:00:32.5]} 37. Kf4 {[%clk 0:00:05.4]} 37... Kg7
{[%clk 0:00:27.8]} 38. g4 {[%clk 0:00:04.4]} 38... Rg2 {[%clk 0:00:26.6]} 39. g5
{[%clk 0:00:03]} 39... a5 {[%clk 0:00:24.5]} 40. Rh3 {[%clk 0:00:02.8]} 40...
Kf8 {[%clk 0:00:20.4]} 41. Ke4 {[%clk 0:00:03.1]} 41... Ke7 {[%clk 0:00:12.2]}
42. Kf4 {[%clk 0:00:03.4]} 42... Kd6 {[%clk 0:00:12.2]} 43. Rh7 {[%clk
0:00:02.4]} 43... Kc5 {[%clk 0:00:11.5]} 44. Ke3 {[%clk 0:00:02.7]} 44... Kb4
{[%clk 0:00:10.9]} 45. f4 {[%clk 0:00:03.2]} 45... Kxb3 {[%clk 0:00:10.5]} 46.
Kf3 {[%clk 0:00:04.1]} 46... Rc2 {[%clk 0:00:08.9]} 47. Kg3 {[%clk 0:00:03.2]}
47... a4 {[%clk 0:00:09.4]} 48. f5 {[%clk 0:00:03.2]} 48... gxf5 {[%clk
0:00:09.2]} 49. Rh8 {[%clk 0:00:04.1]} 49... a3 {[%clk 0:00:09.1]} 50. Rb8+
{[%clk 0:00:04.6]} 50... Ka2 {[%clk 0:00:09.4]} 51. Rh8 {[%clk 0:00:05.1]} 51...
Kb1 {[%clk 0:00:09.7]} 52. Kf4 {[%clk 0:00:05.1]} 52... a2 {[%clk 0:00:09.7]}
53. Rb8+ {[%clk 0:00:05.4]} 53... Rb2 {[%clk 0:00:10.1]} 54. Rh8 {[%clk
0:00:06.3]} 54... a1=Q {[%clk 0:00:10.3]} 55. Rh7 {[%clk 0:00:06.9]} 55... Qa4+
{[%clk 0:00:10.3]} 56. Kxf5 {[%clk 0:00:07.3]} 56... Rb5+ {[%clk 0:00:10.7]} 57.
Kf6 {[%clk 0:00:08.2]} 57... Qd4+ {[%clk 0:00:10.2]} 58. Ke7 {[%clk 0:00:07.8]}
58... Qe4+ {[%clk 0:00:09.4]} 59. Kf8 {[%clk 0:00:04.9]} 59... Qxh7 {[%clk
0:00:09.3]} 60. g6 {[%clk 0:00:04.6]} 60... fxg6 {[%clk 0:00:06.4]} 61. Ke8
{[%clk 0:00:04.8]} 61... Rb8# {[%clk 0:00:07.3]} 0-1

[Event "*** Titled Tuesday Blitz"]
[Site "Chess.com"]
[Date "2021.02.09"]
[Round "7"]
[White "zurzan"]
[Black "chesslh19"]
[Result "0-1"]
[WhiteElo "2001"]
[BlackElo "2230"]
[TimeControl "180+1"]
[EndTime "11:19:44 PST"]
[Termination "chesslh19 won by resignation"]

1. c4 {[%clk 0:03:00.9]} 1... e6 {[%clk 0:02:59.4]} 2. Nc3 {[%clk 0:03:00.1]}
2... d5 {[%clk 0:02:59.5]} 3. cxd5 {[%clk 0:03:00]} 3... exd5 {[%clk 0:03:00.4]}
4. d4 {[%clk 0:02:59.5]} 4... Nf6 {[%clk 0:03:00.9]} 5. g3 {[%clk 0:02:59.3]}
5... c6 {[%clk 0:02:59.7]} 6. Bg2 {[%clk 0:02:59.4]} 6... Bd6 {[%clk 0:02:58.6]}
7. Nf3 {[%clk 0:02:53.7]} 7... O-O {[%clk 0:02:56.2]} 8. O-O {[%clk 0:02:53.7]}
8... Bg4 {[%clk 0:02:54.6]} 9. h3 {[%clk 0:02:52.3]} 9... Bxf3 {[%clk 0:02:54]}
10. Bxf3 {[%clk 0:02:52.6]} 10... Nbd7 {[%clk 0:02:53.8]} 11. Qc2 {[%clk
0:02:47.3]} 11... Re8 {[%clk 0:02:50.6]} 12. Be3 {[%clk 0:02:21]} 12... Bxg3
{[%clk 0:02:38.2]} 13. fxg3 {[%clk 0:02:20.9]} 13... Rxe3 {[%clk 0:02:38]} 14.
Qd2 {[%clk 0:02:21.3]} 14... Re8 {[%clk 0:02:34.5]} 15. Rae1 {[%clk 0:02:17.1]}
15... Qe7 {[%clk 0:02:15]} 16. e4 {[%clk 0:02:14.8]} 16... dxe4 {[%clk
0:02:15.1]} 17. Nxe4 {[%clk 0:02:13.5]} 17... Nxe4 {[%clk 0:02:14.3]} 18. Rxe4
{[%clk 0:02:13.5]} 18... Qd6 {[%clk 0:02:09.5]} 19. Rxe8+ {[%clk 0:02:09]} 19...
Rxe8 {[%clk 0:02:10.4]} 20. Kg2 {[%clk 0:02:08.9]} 20... Nf6 {[%clk 0:02:07]}
21. Rf2 {[%clk 0:01:59.4]} 21... Rd8 {[%clk 0:01:57.5]} 22. Qa5 {[%clk 0:01:50]}
22... Qxd4 {[%clk 0:01:51.2]} 23. Qc7 {[%clk 0:01:42.7]} 23... Qd7 {[%clk
0:01:47.3]} 24. Qa5 {[%clk 0:01:40.7]} 24... b6 {[%clk 0:01:43.1]} 25. Qc3
{[%clk 0:01:39.3]} 25... c5 {[%clk 0:01:39.8]} 26. b4 {[%clk 0:01:35.6]} 26...
Qd4 {[%clk 0:01:38.1]} 27. Qa3 {[%clk 0:01:29.1]} 27... Qxb4 {[%clk 0:01:30.6]}
28. Qxa7 {[%clk 0:01:28.8]} 28... Rf8 {[%clk 0:01:27.7]} 29. a3 {[%clk
0:01:26.1]} 29... Qa5 {[%clk 0:01:27.5]} 30. Qc7 {[%clk 0:01:21.4]} 30... Qxa3
{[%clk 0:01:24.6]} 31. Qxb6 {[%clk 0:01:21.3]} 31... Qb4 {[%clk 0:01:22]} 32.
Qd6 {[%clk 0:01:16.9]} 32... Qd4 {[%clk 0:01:22]} 33. Qc7 {[%clk 0:01:13.5]}
33... Ne4 {[%clk 0:00:54]} 34. Rc2 {[%clk 0:01:10.7]} 34... Qd6 {[%clk
0:00:39.1]} 35. Qxd6 {[%clk 0:01:09.2]} 35... Nxd6 {[%clk 0:00:40]} 36. Rxc5
{[%clk 0:01:09.3]} 36... g6 {[%clk 0:00:39.4]} 37. Rc7 {[%clk 0:01:07.8]} 37...
Kg7 {[%clk 0:00:38.2]} 38. h4 {[%clk 0:01:07.3]} 38... Nf5 {[%clk 0:00:28.5]}
39. Kh3 {[%clk 0:01:05.2]} 39... Nd4 {[%clk 0:00:26.6]} 40. Bd5 {[%clk
0:01:03.9]} 40... Nf5 {[%clk 0:00:26.2]} 41. g4 {[%clk 0:01:02.9]} 41... Nd6
{[%clk 0:00:22]} 42. Rd7 {[%clk 0:00:58.7]} 42... Ne8 {[%clk 0:00:17.9]} 43. h5
{[%clk 0:00:55.4]} 43... Nf6 {[%clk 0:00:16.4]} 44. Rd6 {[%clk 0:00:50.8]} 44...
Nxd5 {[%clk 0:00:16]} 45. Rxd5 {[%clk 0:00:51.2]} 45... f6 {[%clk 0:00:12.5]}
46. hxg6 {[%clk 0:00:50.4]} 46... hxg6 {[%clk 0:00:09.7]} 47. Kg3 {[%clk
0:00:48.7]} 47... Rf7 {[%clk 0:00:09.8]} 48. Ra5 {[%clk 0:00:48]} 48... Re7
{[%clk 0:00:09.8]} 49. Ra6 {[%clk 0:00:47.1]} 49... Rd7 {[%clk 0:00:09.7]} 50.
Ra5 {[%clk 0:00:46.7]} 50... Kf7 {[%clk 0:00:08.9]} 51. Rb5 {[%clk 0:00:46.2]}
51... Rd3+ {[%clk 0:00:08.8]} 52. Kf4 {[%clk 0:00:45.9]} 52... Rd4+ {[%clk
0:00:09.4]} 53. Kg3 {[%clk 0:00:46]} 53... Rd6 {[%clk 0:00:08.3]} 54. Ra5 {[%clk
0:00:45.6]} 54... Re6 {[%clk 0:00:08]} 55. Kf4 {[%clk 0:00:45.3]} 55... Kg7
{[%clk 0:00:06.1]} 56. Ra7+ {[%clk 0:00:44.7]} 56... Kh6 {[%clk 0:00:05.7]} 57.
Ra5 {[%clk 0:00:43.9]} 57... Rb6 {[%clk 0:00:05.3]} 58. Kg3 {[%clk 0:00:43.8]}
58... Rb3+ {[%clk 0:00:05.4]} 59. Kf4 {[%clk 0:00:44.1]} 59... Rb4+ {[%clk
0:00:05.7]} 60. Kg3 {[%clk 0:00:44.5]} 60... Rd4 {[%clk 0:00:05.7]} 61. Rb5
{[%clk 0:00:44]} 61... Re4 {[%clk 0:00:05.6]} 62. Ra5 {[%clk 0:00:44]} 62... Re5
{[%clk 0:00:05.9]} 63. Ra6 {[%clk 0:00:43.7]} 63... Kg5 {[%clk 0:00:05.9]} 64.
Ra4 {[%clk 0:00:41]} 64... Re3+ {[%clk 0:00:06]} 65. Kf2 {[%clk 0:00:40.5]}
65... Re6 {[%clk 0:00:05.1]} 66. Kg3 {[%clk 0:00:40.4]} 66... Re5 {[%clk
0:00:04.5]} 67. Kf3 {[%clk 0:00:39.9]} 67... Rc5 {[%clk 0:00:04.5]} 68. Kg3
{[%clk 0:00:39.6]} 68... Rc3+ {[%clk 0:00:04.5]} 69. Kg2 {[%clk 0:00:39.9]}
69... Kh4 {[%clk 0:00:04.2]} 70. Rf4 {[%clk 0:00:35.2]} 70... Rg3+ {[%clk
0:00:04]} 71. Kh2 {[%clk 0:00:34.4]} 71... Rxg4 {[%clk 0:00:03.7]} 72. Rxf6
{[%clk 0:00:34.5]} 72... Kg5 {[%clk 0:00:04]} 73. Rf8 {[%clk 0:00:33.8]} 73...
Rf4 {[%clk 0:00:03.9]} 74. Kg3 {[%clk 0:00:33.6]} 74... Rxf8 {[%clk 0:00:03.5]}
0-1